fUSD/lending_fUSD_20240802
["ID","MTS","AMOUNT","RATE_DAILY","PERIOD"]
[333901201,1722613852240,-142.80067701,0.0001863,2]
[333901202,1722613852251,-500.0,0.0001863,2]
[333901203,1722613852261,-336.20496679,0.0001863,2]
[333901204,1722613852283,-163.79503321,0.0001863,2]
[333901205,1722613852292,-2745.51,0.0001863,2]
[333901206,1722613852306,-492.54810672,0.0001863,2]
[333901207,1722613852318,-458.35515001,0.0001863,2]
[333901208,1722613852330,-3110.28634999,0.0001863,2]
[333901209,1722613852342,-2658.46039328,0.0001863,2]
[333901210,1722613852352,-1064.1693591,0.0001863,2]
[333901211,1722614010066,200.0,0.00027,120]
[333901215,1722614229542,363.68,0.00025544,120]
[333901216,1722614400962,373070.0,0.00027,120]
[333901217,1722614426892,176741.0,0.00027,120]
[333901220,1722614708626,181.76,0.00025301,120]
[333901252,1722615031740,-185.2188,0.000108,2]
[333901253,1722615031750,-1931.72259513,0.000109,2]
[333901254,1722615031764,-2859.07670487,0.000109,2]
[333901255,1722615031773,-550.0,0.00012,2]
[333901256,1722615031783,-551.54,0.00013973,2]
[333901257,1722615031792,-600.0,0.00014,2]
[333901258,1722615031802,-412.84,0.0001507,2]
[333901259,1722615031811,-795.0,0.000163,2]
[333901260,1722615031821,-86.44910283,0.00016459,2]
[333901261,1722615031836,-163.55089717,0.00016459,2]
[333901262,1722615031846,-150.0,0.0001648,2]
[333901263,1722615031855,-110.01623811,0.0001648,2]
[333901264,1722615031867,-637.5225,0.0001648,2]
[333901265,1722615031879,-252.46126189,0.0001648,2]
[333901266,1722615031889,-192.49,0.00016679,2]
[333901267,1722615031898,-150.0,0.00016679,2]
[333901268,1722615031907,-150.392,0.00016679,2]
[333901269,1722615031916,-179.73397868,0.00016679,2]
[333901270,1722615031928,-441.26602132,0.00016679,2]
[333901271,1722615031937,-1424.368,0.00016679,2]
[333901272,1722615031947,-234.36597868,0.00016679,2]
[333901273,1722615031974,-214.63402132,0.00016679,2]
[333901274,1722615031983,-550.0,0.00016679,2]
[333901275,1722615031992,-321.041,0.00016679,2]
[333901276,1722615032001,-1370.0,0.00016679,2]
[333901277,1722615032012,-1826.23311528,0.00016679,2]
[333901278,1722615032023,-1460.76688472,0.00016679,2]
[333901279,1722615032032,-1075.0,0.00016679,2]
[333901281,1722615032041,-4110.76908302,0.00016679,2]
[333901285,1722615032052,-1180.74374656,0.00016679,2]
[333901288,1722615032063,-542.48717042,0.00016679,2]
[333901291,1722615032072,-1349.47412694,0.00016679,2]
[333901296,1722615032093,-320.52587306,0.00016679,2]
[333901300,1722615032102,-5126.0,0.00016679,2]
[333901302,1722615032110,-1203.0,0.00016679,2]
[333901306,1722615032120,-21732.0,0.00016679,2]
[333901307,1722615032131,-150.0,0.00016767,2]
[333901308,1722615032142,-795.58,0.0001678,2]
[333901309,1722615032152,-999.99,0.0001678,2]
[333901310,1722615032161,-511.62,0.0001678,2]
[333901311,1722615032176,-2000.0,0.00016781,2]
[333901312,1722615032186,-181.76,0.00016868,2]
[333901313,1722615032195,-21881.50712733,0.00016929,2]
[333901314,1722615032207,-579.03807464,0.00016929,2]
[333901315,1722615032221,-12000.0,0.00016929,2]
[333901321,1722615037577,-21257.92839993,0.00016929,2]
[333901322,1722615037587,-15714.23554968,0.00016986,2]
[333901327,1722615038671,-14010.95722399,0.00016986,2]
[333901329,1722615038686,-12253.96004506,0.00016986,2]
[333901331,1722615038702,-6228.16074838,0.00016986,2]
[333901332,1722615038716,-1548.56260355,0.00016986,2]
[333901333,1722615038729,-1364.83123837,0.00016986,2]
[333901334,1722615038742,-6136.10883829,0.00016986,2]
[333901335,1722615038754,-2217.77314234,0.00016986,2]
[333901336,1722615038771,-30504.29159966,0.00016986,2]
[333901337,1722615038784,-16561.04449965,0.00016986,2]
[333901338,1722615038796,-16259.94278743,0.00016986,2]
[333901339,1722615038807,-1632.3621893,0.00016986,2]
[333901385,1722615040640,-485.3980518,0.00016986,2]
[333901387,1722615040652,-308.94361421,0.00016986,2]
[333901389,1722615040663,-4737.26219031,0.00016986,2]
[333901391,1722615040678,-957.39475018,0.00016986,2]
[333901394,1722615040692,-32037.6309278,0.00016986,2]
[333901396,1722615040701,-363.68,0.00017029,2]
[333901398,1722615040711,-11659.2034112,0.00017043,2]
[333901400,1722615040724,-2955.8665888,0.00017043,2]
[333901402,1722615040734,-250.0,0.00017067,2]
[333901404,1722615040743,-499.99,0.00017092,2]
[333901406,1722615040753,-150.99,0.00017182,2]
[333901408,1722615040766,-2082.65759423,0.00017259,2]
[333901410,1722615040778,-975.50742252,0.00017259,2]
[333901413,1722615040789,-807.664508,0.00017259,2]
[333901415,1722615040800,-705.65680306,0.00017259,2]
[333901421,1722615040850,-1129.10829927,0.00017259,2]
[333901423,1722615040862,-2437.39358701,0.00017259,2]
[333901425,1722615040873,-541.71068059,0.00017259,2]
[333901429,1722615040897,-1049.72034013,0.00017259,2]
[333901431,1722615040908,-470.89476816,0.00017259,2]
[333901433,1722615040919,-814.42952318,0.00017259,2]
[333901435,1722615040932,-3258.36262587,0.00017259,2]
[333901437,1722615040944,-2402.65850854,0.00017259,2]
[333901439,1722615040956,-1522.575,0.00017259,2]
[333901442,1722615040968,-4091.22612,0.00017259,2]
[333901444,1722615040981,-765.60434781,0.00017259,2]
[333901446,1722615040993,-412.39,0.00017259,2]
[333901449,1722615041017,-6785.184,0.00017259,2]
[333901451,1722615041029,-775.1703946,0.00017259,2]
[333901453,1722615041041,-15590.73546324,0.00017259,2]
[333901456,1722615041052,-259.46704051,0.00017259,2]
[333901577,1722615042669,-2179.86755184,0.00017259,2]
[333901580,1722615042680,-1317.344,0.00017259,2]
[333901583,1722615042739,-5343.14502331,0.00017259,2]
[333901584,1722615042749,-317.348,0.00017278,2]
[333901585,1722615042764,-2610.27,0.00017283,2]
[333901586,1722615042773,-166.23762541,0.0001738,2]
[333901587,1722615042782,-55718.47360187,0.00017589,2]
[333901588,1722615042792,-2469.0564,0.00017695,2]
[333901589,1722615042801,-150.0,0.00017754,2]
[333901590,1722615042810,-1159.36161295,0.00017794,5]
[333901591,1722615042820,-55718.47360187,0.00017919,2]
[333901592,1722615042829,-2500.4353,0.00018081,2]
[333901593,1722615042838,-55718.47360187,0.00018249,2]
[333901594,1722615042847,-1758.9001,0.000183,2]
[333901595,1722615042857,-900.0,0.000183,6]
[333901596,1722615042866,-152.27,0.0001839,2]
[333901597,1722615042875,-43805.51408723,0.000184,2]
[333901598,1722615042887,-13595.7235,0.000184,2]
[333901599,1722615042944,-7439.83110313,0.000184,2]
[333901600,1722615042955,-1115.58870393,0.000184,2]
[333901601,1722615042966,-13594.94689997,0.000184,2]
[333901603,1722615042978,-511.41496135,0.000184,2]
[333901605,1722615042990,-362.76485203,0.000184,2]
[333901606,1722615043001,-8783.19619374,0.000184,2]
[333901607,1722615043036,-13229.35914712,0.000184,2]
[333901608,1722615043045,-1457.79772213,0.000184,6]
[333901613,1722615043081,-342.20227787,0.000184,6]
[333901614,1722615043096,-357.51772213,0.00018428,2]
[333901618,1722615043378,-731.19328069,0.00018428,2]
[333901619,1722615043388,-1000.0,0.0001843,2]
[333901620,1722615043399,-2500.0,0.0001843,2]
[333901621,1722615043409,-3554.3435586,0.000185,2]
[333901622,1722615043422,-373.5132,0.000185,2]
[333901623,1722615043436,-28263.6134414,0.000185,2]
[333901624,1722615043448,-2700.0,0.000185,6]
[333901625,1722615043459,-4770.00590745,0.00018528,4]
[333901626,1722615043468,-400.2529,0.00018529,2]
[333901627,1722615043478,-385.35096756,0.0001853,2]
[333901628,1722615043489,-179.62485198,0.0001853,2]
[333901629,1722615043498,-600.73274452,0.0001853,2]
[333901630,1722615043511,-539.9507866,0.0001853,2]
[333901631,1722615043521,-1311.40293126,0.0001853,2]
[333901632,1722615043531,-500.0,0.0001853,2]
[333901633,1722615043541,-56946.75636719,0.0001853,2]
[333901634,1722615043553,-5833.36782427,0.0001853,2]
[333901669,1722615045874,-522.23783259,0.00017533,2]
[333901672,1722615045888,-274.68725396,0.00017533,2]
[333901674,1722615045902,-3305.46656813,0.00017533,2]
[333901676,1722615045914,-1585.96886493,0.0001853,2]
[333901682,1722615045970,-35507.93684361,0.0001853,2]
[333901684,1722615045981,-1000.0,0.0001853,2]
[333901686,1722615045990,-295.9404,0.0001853,2]
[333901688,1722615046000,-2000.0,0.0001853,2]
[333901690,1722615046016,-5678.5941,0.0001853,2]
[333901692,1722615046026,-783.3966,0.0001853,2]
[333901693,1722615046036,-7500.0,0.0001853,2]
[333901695,1722615046045,-1000.0,0.0001854,2]
[333901697,1722615046056,-55718.47360187,0.0001858,2]
[333901699,1722615046065,-1088.71100274,0.00018592,2]
[333901701,1722615046074,-1131.0,0.000186,2]
[333901702,1722615046084,-50000.0,0.000186,2]
[333901703,1722615046093,-50000.0,0.000186,2]
[333901705,1722615046102,-20635.0,0.000186,2]
[333901748,1722615046479,-3600.0,0.000186,6]
[333901750,1722615046489,-12741.7552309,0.0001862,2]
[333901752,1722615046499,-2547.4571539,0.00018621,2]
[333901754,1722615046512,-320.96618258,0.00018629,2]
[333901756,1722615046521,-67858.45242515,0.0001863,7]
[333901759,1722615046533,-1565.74026867,0.0001863,7]
[333901761,1722615046545,-818.55008395,0.0001863,7]
[333901763,1722615046557,-2064.46561289,0.0001863,7]
[333901770,1722615046608,-868.925,0.0001863,7]
[333901772,1722615046619,-6362.28804746,0.0001863,7]
[333901776,1722615046644,-295.21458624,0.0001863,7]
[333901778,1722615046655,-49621.03248689,0.0001863,7]
[333901781,1722615046678,-1856.21429403,0.0001863,7]
[333901783,1722615046690,-1584.77000004,0.0001863,7]
[333901786,1722615046706,-498.84338336,0.0001863,7]
[333901788,1722615046718,-707.67943421,0.0001863,7]
[333901791,1722615046733,-738.64818932,0.0001863,7]
[333901793,1722615046745,-2087.08,0.0001863,7]
[333902097,1722615120956,1001.0,0.00027,120]
[333902100,1722615195917,1000.0,0.00027,120]
[333902101,1722615196656,1000.0,0.00027,120]
[333902102,1722615207880,181.8,0.0002599,120]
[333902103,1722615216789,200.0,0.00027,120]
[333902117,1722615553483,150.86,0.00013433,2]
[333902118,1722615583611,201.32721051,0.00013433,2]
[333902119,1722615586957,961.73385399,0.00013433,2]
[333902120,1722615589280,299.72939441,0.00013433,2]
[333902121,1722615590778,170.33874759,0.00013433,2]
[333902122,1722615590977,219.59090524,0.00013433,2]
[333902123,1722615591005,639.17393688,0.00013433,2]
[333902124,1722615591032,1707.41948427,0.00013433,2]
[333902125,1722615591811,158.92239483,0.00013433,2]
[333902126,1722615593229,137.23823264,0.00013433,2]
[333902127,1722615593256,912.54677982,0.00013433,2]
[333902128,1722615593320,871.50003279,0.00013433,2]
[333902130,1722615595745,219.53329913,0.00013433,2]
[333902131,1722615595783,2003.58011174,0.00013433,2]
[333902132,1722615595818,1234.70420416,0.00013433,2]
[333902133,1722615595846,2003.58011174,0.00013433,2]
[333902134,1722615595873,2003.58011174,0.00013433,2]
[333902135,1722615595901,2003.58011174,0.00013433,2]
[333902136,1722615595928,2003.58011174,0.00013433,2]
[333902137,1722615595954,2003.58011174,0.00013433,2]
[333902138,1722615595980,2003.58011174,0.00013433,2]
[333902139,1722615596006,2003.58011174,0.00013433,2]
[333902140,1722615596033,2003.58011174,0.00013433,2]
[333902141,1722615596059,220.11483102,0.00013433,2]
[333902142,1722615600140,1783.46528072,0.00013433,2]
[333902143,1722615600168,2003.58011174,0.00013433,2]
[333902144,1722615600197,2003.58011174,0.00013433,2]
[333902145,1722615600225,1781.67937668,0.00013433,2]
[333902146,1722615603040,221.90073506,0.00013433,2]
[333902147,1722615603082,263.37853403,0.00013433,2]
[333902148,1722615605960,744.27976527,0.00013433,2]
[333902149,1722615605989,217.45408872,0.00013433,2]
[333902150,1722615615923,449.16897912,0.00013433,2]
[333902151,1722615623974,155.0,0.00013433,2]
[333902152,1722615630266,363.69508992,0.00013433,2]
[333902153,1722615632067,818.26195398,0.00013433,2]
[333902157,1722615907806,60000.0,0.00011,2]
[333902167,1722616156282,57670.36559566,0.00027,120]
[333902192,1722616231876,-2946.90647913,0.0001,2]
[333902193,1722616231887,-600.0,0.000108,3]
[333902194,1722616231896,-2560.19662541,0.0001089,2]
[333902195,1722616231933,-356.80337459,0.0001089,2]
[333902196,1722616231942,-300.0,0.00010899,2]
[333902197,1722616231952,-150.0,0.00010899,2]
[333902198,1722616231961,-41904.78030246,0.000109,2]
[333902199,1722616231971,-1200.0,0.000109,3]
[333902200,1722616231980,-610.74168558,0.000109,2]
[333902201,1722616231989,-352.43506566,0.000109,2]
[333902202,1722616231998,-217.51297547,0.000109,2]
[333902203,1722616232012,-436.44,0.00010918,2]
[333902204,1722616232026,-152.27,0.0001099,2]
[333902205,1722616232035,-7895.19879925,0.00010997,2]
[333902206,1722616232044,-394326.77453942,0.00011,2]
[333902207,1722616232056,-6075.0,0.00011,2]
[333902208,1722616232068,-700.0,0.00011,2]
[333902209,1722616232079,-3160.4573,0.00011,2]
[333902210,1722616232097,-484.55762474,0.00011,2]
[333902217,1722616237905,-2542.46722963,0.00011,2]
[333902220,1722616238232,-384.92800663,0.00011,2]
[333902250,1722616238730,-1266.7,0.00011,2]
[333902267,1722616239809,-320.10297877,0.00011,2]
[333902274,1722616239872,-5594.43146235,0.00011,2]
[333902276,1722616239884,-1352.08206824,0.00011,2]
[333902278,1722616239895,-1042.53380516,0.00011,2]
[333902281,1722616239908,-19357.1500304,0.00011,2]
[333902283,1722616239919,-12694.96982004,0.00011,2]
[333902285,1722616239931,-1031.00172718,0.00011,2]
[333902289,1722616239963,-3798.55526251,0.00011,2]
[333902291,1722616240022,-68839.76627099,0.00011,2]
[333902292,1722616240034,-1818.9,0.00011,2]
[333902293,1722616240072,-1086.34670665,0.00011,2]
[333902294,1722616240091,-837.74750378,0.00011,2]
[333902295,1722616240103,-4285.81638443,0.00011,2]
[333902296,1722616240133,-12875.42335342,0.00011,2]
[333902297,1722616240144,-359.58943198,0.00011,2]
[333902298,1722616240155,-535.85788251,0.00011,2]
[333902299,1722616240166,-1534.61932229,0.00011,2]
[333902300,1722616240193,-1360.58711801,0.00011,2]
[333902301,1722616240205,-48657.37550596,0.00011,2]
[333902302,1722616240216,-1881.37911351,0.00011,2]
[333902521,1722616242833,-1518.05,0.00011,2]
[333902523,1722616242846,-330.5,0.00011,2]
[333902525,1722616242900,-1058.55765,0.00011,2]
[333902526,1722616242957,-2123.69096423,0.00011,2]
[333902527,1722616242969,-3722.0,0.00011,2]
[333902528,1722616242981,-361.01292754,0.00011,2]
[333902529,1722616242992,-662.74,0.00011,2]
[333902530,1722616243003,-228487.95895451,0.00011,2]
[333902531,1722616243041,-2109.7800008,0.00011,2]
[333902532,1722616243056,-28240.08299187,0.00011,2]
[333902533,1722616243097,-532.35328105,0.00011,2]
[333902534,1722616243123,-5236.26623947,0.00011,2]
[333902535,1722616243151,-66945.94758884,0.00011,2]
[333902536,1722616243190,-1469.59370028,0.00011,2]
[333902617,1722616244301,-6463.9152786,0.00011,2]
[333902618,1722616244319,-10290.3229,0.00011,2]
[333902629,1722616246046,-518.90570714,0.00011,2]
[333902630,1722616246058,-444645.11118407,0.00011,2]
[333902631,1722616246082,-414.16439882,0.00011,2]
[333902632,1722616246094,-5177.5175671,0.00011,2]
[333902633,1722616246127,-123261.40946595,0.00011,2]
[333902634,1722616246138,-41904.78030239,0.0001187,2]
[333902635,1722616246147,-270.85,0.0001187,2]
[333902636,1722616246157,-579.58,0.0001187,2]
[333902637,1722616246166,-2380.42,0.0001187,2]
[333902638,1722616246176,-179.77556321,0.000119,2]
[333902639,1722616246186,-550.0,0.00012,2]
[333902640,1722616246195,-217.51297545,0.00012068,2]
[333902641,1722616246204,-352.43506564,0.00012511,2]
[333902642,1722616246215,-2000.0,0.00012666,2]
[333902643,1722616246225,-22393.85382751,0.00012839,2]
[333902644,1722616246303,-744.47746615,0.00012839,2]
[333902645,1722616246323,-2250.41745785,0.00012839,2]
[333902646,1722616246334,-8669.84035761,0.00012839,2]
[333902648,1722616246348,-7846.19119327,0.00012839,2]
[333902650,1722616246358,-870.96880221,0.000129,2]
[333902652,1722616246368,-500.0,0.00013,2]
[333902654,1722616246377,-436.44,0.00013182,2]
[333902655,1722616246387,-947.76827511,0.00013199,2]
[333902656,1722616246396,-217.51297545,0.00013237,2]
[333902657,1722616246406,-740.10567944,0.0001331,2]
[333902658,1722616246416,-500.0,0.000135,2]
[333902659,1722616246425,-870.96880219,0.00013647,2]
[333902660,1722616246435,-12463.49739295,0.000138,2]
[333902661,1722616246447,-11250.77781525,0.000138,2]
[333902662,1722616246459,-959.66047797,0.000138,2]
[333902663,1722616246472,-326.065,0.000138,2]
[333902664,1722616246483,-470.22347517,0.000138,2]
[333902665,1722616246495,-24169.29851226,0.000138,2]
[333902666,1722616246505,-36935.14027523,0.00013809,2]
[333902667,1722616246518,-4969.64002716,0.00013809,2]
[333902668,1722616246528,-250.0,0.0001389,2]
[333902671,1722616246539,-224.67632781,0.00013899,2]
[333902673,1722616246548,-204744.680298,0.000139,2]
[333902675,1722616246558,-160.39,0.00013923,2]
[333902677,1722616246567,-150.41,0.00013973,2]
[333902678,1722616246578,-600.0,0.00014,2]
[333902679,1722616246591,-352.43506564,0.00014121,2]
[333902680,1722616246601,-870.96880219,0.00014395,2]
[333902681,1722616246611,-217.51297545,0.00014405,2]
[333902682,1722616246621,-261.2,0.000145,2]
[333902683,1722616246630,-147540.12155892,0.00014778,7]
[333902684,1722616246641,-6346.37078948,0.00014778,7]
[333902685,1722616246842,-2092.81734162,0.00014778,7]
[333902686,1722616246853,-12136.4417712,0.00014778,7]
[333902687,1722616246865,-1313.84597033,0.00014778,7]
[333902688,1722616246891,-2152.65565936,0.00014778,7]
[333902689,1722616246903,-1900.41,0.00014778,7]
[333902727,1722616400943,1000.0,0.00027,120]
[333902728,1722616401635,1000.0,0.00027,120]
[333902729,1722616409699,200.0,0.00027,120]
[333902761,1722617432053,-2186.610843,0.00013039,2]
[333902762,1722617432063,-439.18,0.00013105,2]
[333902763,1722617432072,-3136.09940103,0.00013303,2]
[333902764,1722617432162,-381.116,0.00013303,2]
[333902765,1722617432174,-438.97982347,0.00013303,2]
[333902766,1722617432219,-8854.34419824,0.00013303,2]
[333902767,1722617432229,-300.0,0.00013377,2]
[333902768,1722617432249,-1846.6455,0.00013759,2]
[333902769,1722617432260,-7561.47527791,0.00013799,2]
[333902770,1722617432278,-163.53,0.00013973,2]
[333902771,1722617432289,-523.96,0.00013973,2]
[333902772,1722617432299,-4102.39165468,0.00013996,2]
[333902773,1722617432309,-1335.49062,0.000145,2]
[333902774,1722617432319,-2500.4353,0.00014789,2]
[333902775,1722617432329,-300.78,0.00014789,2]
[333902776,1722617432339,-9119.18,0.00014796,2]
[333902777,1722617432348,-9700.0,0.00014941,2]
[333902778,1722617432358,-999.99,0.00014959,2]
[333902779,1722617432369,-150.0,0.00014959,2]
[333902780,1722617432379,-2000.0,0.00014984,2]
[333902781,1722617432389,-181.8,0.00014997,2]
[333902782,1722617432399,-150.0,0.00014997,2]
[333902784,1722617432409,-150.0,0.00014999,2]
[333902786,1722617432418,-211.48322793,0.00014999,2]
[333902787,1722617432428,-211.48322793,0.00014999,2]
[333902788,1722617432438,-267.62549217,0.00015,14]
[333902789,1722617432448,-250.0,0.00015046,2]
[333902790,1722617432458,-439.18,0.00015369,2]
[333902791,1722617432468,-600.0,0.00015495,2]
[333902792,1722617432478,-397.79,0.00015495,2]
[333902793,1722617432489,-250.0,0.00015495,2]
[333902794,1722617432499,-1518.02409611,0.00015499,2]
[333902795,1722617432508,-25933.22136413,0.00015499,2]
[333902796,1722617432526,-638.68830435,0.00015499,2]
[333902797,1722617432552,-6249.44033152,0.00015499,2]
[333902798,1722617432561,-912.04,0.000155,2]
[333902799,1722617432571,-911.09,0.000155,2]
[333902800,1722617432581,-9999.99,0.000155,2]
[333902801,1722617432590,-1000.0,0.00015663,2]
[333902802,1722617432600,-499.99,0.00015663,2]
[333902803,1722617432610,-1000.0,0.00015663,2]
[333902804,1722617432620,-4697.04,0.00015685,2]
[333902805,1722617432631,-254.56,0.00015686,2]
[333902806,1722617432640,-181.8,0.00015705,2]
[333902807,1722617432650,-400.0,0.00015748,2]
[333902808,1722617432660,-168.69,0.00015748,2]
[333902809,1722617432670,-1981.99189209,0.00015906,2]
[333902810,1722617432680,-650.0,0.00016,2]
[333902811,1722617432689,-155.0,0.00016033,2]
[333902812,1722617432699,-178.16,0.00016041,2]
[333902813,1722617432709,-254.95149509,0.00016232,2]
[333902814,1722617432719,-3615.381,0.00016298,2]
[333902815,1722617432729,-2692.0,0.000163,2]
[333902816,1722617432739,-150.0,0.00016311,2]
[333902817,1722617432749,-1000.0,0.00016679,2]
[333902818,1722617432759,-155.0,0.00016799,2]
[333902819,1722617432774,-1370.0,0.00016947,2]
[333902820,1722617432784,-2705.206,0.00016947,2]
[333902821,1722617432795,-5121.0,0.00016947,2]
[333902822,1722617432804,-1203.0,0.00016947,2]
[333902823,1722617432814,-21732.0,0.00016947,2]
[333902824,1722617433325,-1670.0,0.00016947,2]
[333902825,1722617433343,-5834.0,0.00016947,2]
[333902826,1722617433353,-1251.83,0.0001726,2]
[333902827,1722617433363,-420.45,0.0001726,2]
[333902828,1722617433373,-600.0,0.00017431,2]
[333902829,1722617433383,-25203.37868143,0.00017525,2]
[333902830,1722617433394,-632.05125656,0.00017525,2]
[333902831,1722617433404,-439.18,0.00017633,2]
[333902832,1722617433414,-254.56,0.00017647,2]
[333902833,1722617433424,-174.01038036,0.0001768,2]
[333902834,1722617433434,-150.0,0.00017681,2]
[333902835,1722617433445,-5981.6493,0.00017699,2]
[333902836,1722617433455,-400.0,0.00017716,2]
[333902837,1722617433466,-376.7366,0.0001778,2]
[333902838,1722617433475,-20812.09860539,0.0001778,2]
[333902852,1722617439153,-1943.14147469,0.0001778,2]
[333902853,1722617439165,-77244.75991992,0.0001778,2]
[333902854,1722617439175,-4970.2919,0.0001778,2]
[333902855,1722617439184,-6225.9273,0.0001778,2]
[333902856,1722617439194,-176.21753282,0.0001778,2]
[333902857,1722617439203,-150.0,0.00017836,2]
[333902858,1722617439213,-8594.35695757,0.00017865,2]
[333902859,1722617439224,-329.26589134,0.00017865,2]
[333902862,1722617440102,-1075.0,0.00016947,2]
[333902863,1722617440112,-632.05125656,0.00017865,2]
[333902864,1722617440122,-2326.64409432,0.0001787,2]
[333902865,1722617440131,-237417.26153528,0.0001788,2]
[333902866,1722617440141,-500.0,0.000179,6]
[333902867,1722617440150,-5816.6102358,0.0001799,2]
[333902868,1722617440159,-110309.04402602,0.00018,2]
[333902869,1722617440226,-29650.68970297,0.00018,2]
[333902870,1722617440237,-587.72819476,0.00018,2]
[333902871,1722617440249,-623.34408561,0.00018,2]
[333902872,1722617440263,-1521.44887068,0.00018,2]
[333902873,1722617440347,-20348.40046194,0.00018,2]
[333902874,1722617440357,-371.71125404,0.00018,2]
[333902875,1722617440366,-176.21753282,0.0001803,2]
[333902876,1722617440376,-174.01038036,0.00018068,2]
[333902877,1722617440385,-1163.32204716,0.00018194,2]
[333902878,1722617440395,-167.0,0.00018198,2]
[333902879,1722617440405,-25203.37868143,0.00018204,2]
[333902881,1722617440414,-632.05125656,0.00018204,2]
[333902883,1722617440424,-176.21753282,0.0001828,2]
[333902885,1722617440433,-255.4697,0.0001833,2]
[333902887,1722617440443,-1000.0,0.000184,6]
[333902889,1722617440453,-4653.28818864,0.0001842,2]
[333902891,1722617440463,-174.01038036,0.00018455,2]
[333902893,1722617440472,-502.75918183,0.000185,2]
[333903051,1722617443028,-561.7588619,0.00012939,2]
[333903055,1722617443124,-258.8314381,0.00012939,2]
[333903056,1722617443134,-1029.03776317,0.000185,2]
[333903057,1722617443144,-1500.0,0.000185,6]
[333903058,1722617443153,-376.58341589,0.00018529,2]
[333903059,1722617443163,-164.61705305,0.0001853,2]
[333903060,1722617443172,-176.21753282,0.0001853,2]
[333903061,1722617443182,-7065.20119787,0.0001853,2]
[333903062,1722617443191,-214.12705224,0.0001853,2]
[333903063,1722617443201,-1163.32204716,0.00018533,2]
[333903065,1722617443210,-25203.37868143,0.00018543,2]
[333903067,1722617443220,-632.05125656,0.00018543,2]
[333903069,1722617443229,-3489.96614148,0.0001859,2]
[333903070,1722617443239,-1159.36161295,0.00018599,5]
[333903071,1722617443249,-1073.58046777,0.00018599,2]
[333903072,1722617443259,-21473.87496767,0.000186,2]
[333903073,1722617443335,-9468.60000001,0.000186,2]
[333903074,1722617443346,-689.42684808,0.000186,2]
[333903075,1722617443358,-313.5051079,0.000186,2]
[333903076,1722617443367,-198.23966629,0.000186,2]
[333903077,1722617443378,-1683.31742823,0.000186,2]
[333903078,1722617443425,-6206.22470009,0.000186,2]
[333903079,1722617443437,-30841.42712922,0.000186,2]
[333903080,1722617443446,-2000.0,0.000186,6]
[333903081,1722617443456,-6979.93228296,0.0001862,2]
[333903082,1722617443465,-210.68434848,0.00018629,2]
[333903083,1722617443475,-5950.2341632,0.00018629,2]
[333903084,1722617443485,-157.27342947,0.00018629,2]
[333903085,1722617443495,-150.0,0.00018629,2]
[333903086,1722617443505,-995.0,0.0001863,2]
[333903087,1722617443515,-170606.44073396,0.0001863,7]
[333903088,1722617443530,-162.47429364,0.0001863,2]
[333903089,1722617443540,-2402.24,0.0001863,2]
[333903090,1722617443550,-8032.25257358,0.0001863,2]
[333903091,1722617443596,-0.04219962,0.0001863,2]
[333903092,1722617443699,-5796.61388504,0.0001863,2]
[333903093,1722617443710,-4491.72001492,0.0001863,2]
[333903094,1722617443722,-2731.06368619,0.0001863,2]
[333903105,1722617446190,-292.29389981,0.00018629,2]
[333903106,1722617446200,-9660.65666331,0.0001863,2]
[333903107,1722617446210,-500.0,0.0001863,2]
[333903108,1722617446219,-500.0,0.0001863,2]
[333903109,1722617446229,-500.0,0.0001863,2]
[333903110,1722617446238,-500.0,0.0001863,2]
[333903111,1722617446248,-500.0,0.0001863,2]
[333903112,1722617446259,-500.0,0.0001863,2]
[333903113,1722617446269,-315.07438305,0.0001863,2]
[333903126,1722617446675,-500.0,0.0001863,2]
[333903130,1722617446703,-500.0,0.0001863,2]
[333903131,1722617446716,-500.0,0.0001863,2]